Cogmind - Beta 12 @@@ ROGUE MODE // 2023.09.11 @ 16:28:32 Player: Rentaro Result: Core destroyed Performance ------------- Evolutions (3) 1500 Regions Visited (4) 800 Robots Destroyed (67) 335 Value Destroyed (1660) 1660 Prototype IDs (10) 200 Alien Tech Used (0) 0 Bonus (0) 0 TOTAL SCORE: 4495 Bonus ------- None Cogmind --------- Core Integrity 0/700 Matter 300/300 Energy 99/100 System Corruption 4% Temperature Cool (0) Movement Core (50) Location -7/Factory Parts ------- > --- POWER (1) -------- (None) > --- PROPULSION (6) --- (None) > --- UTILITY (4) ------ Improved Signal Interpreter Improved Melee Analysis Suite > --- WEAPON (2) ------- (None) > --- INVENTORY (5) ---- Micro Nuclear Core Structural Scanner Trap Scanner Advanced Visual Processing Unit Improved Sensor Array Peak State ------------ > --- POWER ------------ Micro Nuclear Core > --- PROPULSION ------- Compact Wheel Armored Huge Wheel Gravmag System Gravmag System Gravmag System > --- UTILITY ---------- Medium Storage Unit Improved Signal Interpreter Improved Melee Analysis Suite System Shield > --- WEAPON ----------- Centrium Greatsword > --- INVENTORY -------- Micro Nuclear Core Advanced Weight Redist. System Structural Scanner Trap Scanner Advanced Visual Processing Unit Improved Sensor Array Transport Network Coupler Reaction Control System Hacking Suite System Shield [Rating: 54] Favorites ----------- Power Micro Nuclear Core Engine Light Ion Engine Power Core Micro Nuclear Core Reactor Cold Fusion Reactor Propulsion Aluminum Leg Leg Aluminum Leg Wheel Compact Wheel Hover Unit Gravmag System Flight Unit VTOL Module Utility Medium Storage Unit Device Improved Sensor Array Storage Medium Storage Unit Processor Improved Signal Interpreter Hackware System Shield Protection Power Shielding Weapon Advanced Beam Rifle Energy Gun Advanced Beam Rifle Energy Cannon Beam Cannon Impact Weapon Powered Hammer Slashing Weapon Centrium Greatsword Build | -11 -10 -9 -8 -7 ------- Run | Jun Mat Mat Mat Fac Slots Evolved 6 | . . 2 2 2 Power . | . . . . . Propulsion 4 | . . 1 1 2 Utility 2 | . . 1 1 . Weapon . | . . . . . Parts Attached 106 | 6 5 12 34 49 Power 16 | 1 . 1 6 8 Engine 6 | 1 . 1 2 2 Core 8 | . . . 4 4 Reactor 2 | . . . . 2 Propulsion 25 | 2 . 1 4 18 Treads . | . . . . . Leg 8 | 2 . 1 4 1 Wheel 6 | . . . . 6 Hover 10 | . . . . 10 Flight 1 | . . . . 1 Utility 46 | 1 4 8 16 17 Device 24 | . . 4 6 14 Storage 7 | 1 3 . 2 1 Processor 3 | . . 1 1 1 Hackware 2 | . . . 1 1 Protection 10 | . 1 3 6 . Artifact . | . . . . . Weapon 19 | 2 1 2 8 6 Energy Gun 12 | 2 1 1 8 . Energy Cannon 1 | . . 1 . . Ballistic Gun . | . . . . . Ballistic Cannon . | . . . . . Launcher . | . . . . . Special Weapon . | . . . . . Impact Weapon 5 | . . . . 5 Slashing Weapon 1 | . . . . 1 Piercing Weapon . | . . . . . Special Melee Weapon . | . . . . . Unidentified Prototypes 10 | . . . 3 7 Parts Lost 26 | . . . 6 20 Power 5 | . . . 2 3 Propulsion 17 | . . . 3 14 Utility 2 | . . . . 2 Weapon 2 | . . . 1 1 Highest Loss Streak 10 | . . . 4 10 To Critical Strikes 2 | . . . . 2 Average Slot Usage (%) 85 | . 93 100 88 79 Engine 3 | . 14 11 3 . Core 4 | . . . 5 6 Leg 16 | . 28 33 27 6 Wheel 5 | . . . . 10 Hover 7 | . . . . 14 Device 5 | . . 10 7 6 Storage 8 | . 14 11 9 6 Processor 6 | . . 5 9 7 Hackware 5 | . . . 8 6 Protection 2 | . 8 6 2 . Energy Gun 8 | . 28 11 13 1 Energy Cannon 1 | . . 11 2 . Impact Weapon 2 | . . . . 4 Slashing Weapon 2 | . . . . 4 Naked Turns . | . . . . . Heaviest Build 29 | 13 15 17 29 28 Greatest Support 60 | 20 20 30 43 60 Greatest Overweight (x) 7 | . . . 1 7 Average Overweight (x) . | . . . . . Largest Inventory Capacity 15 | 8 15 8 10 10 Average Capacity 9 | 7 8 8 9 9 Most Carried 10 | 3 8 8 10 10 Average Carried 8 | . 5 6 8 9 Final Capacity 10 | 8 8 8 10 5 Final Carried 9 | 1 8 7 9 5 Class Distribution -------------------- 58% | Mutant 37% | Scavenger-Mutant 4% | Scavenger-Gladiator Dominant Class ---------------- Mutant | -10/Materials Mutant | -9/Materials Mutant | -8/Materials Scavenger-Mutant | -7/Factory Resources | -11 -10 -9 -8 -7 ----------- Run | Jun Mat Mat Mat Fac Matter Collected 1256 | 260 50 120 370 456 Remotely . | . . . . . Salvage Created 2630 | 29 221 203 1035 1142 Parts 139 | 2 4 27 45 61 Haulers Intercepted 10 | . 1 . 4 5 Recyclers Shooed . | . . . . . Parts Field Recycled . | . . . . . Retrieved Matter . | . . . . . Parts Self-Destructed . | . . . . . Prevented . | . . . . . Kills | -11 -10 -9 -8 -7 ------- Run | Jun Mat Mat Mat Fac Combat Hostiles Destroyed 30 | . 4 2 11 13 Melee 10 | . . . . 10 Guns 15 | . 4 1 10 . Cannons 1 | . . 1 . . Classes Destroyed 14 | 1 2 3 6 2 Worker 1 | . . . 1 . Builder 14 | . . 3 1 10 Tunneler 2 | 1 . . . 1 Hauler 10 | . 1 . 4 5 Recycler 4 | . . . 2 2 Operator 3 | . . . 1 2 Watcher 3 | . . 1 1 1 Swarmer 4 | . . . . 4 Grunt 13 | . 4 . 7 2 Sentry 3 | . . 2 . 1 Specialist 2 | . . . 2 . Hunter 3 | . . . 1 2 Programmer 4 | . . . . 4 Heavy 1 | . . . 1 . Best Kill Streak 4 | 1 2 2 3 4 Combat Bots Only 4 | . 2 1 3 4 Max Kills in Single Turn 2 | 1 1 2 2 1 Gunslinging . | . . . . . Exploded . | . . . . . Melee 1 | . . . . 1 Uniques/NPCs Destroyed . | . . . . . Combat | -11 -10 -9 -8 -7 -------- Run | Jun Mat Mat Mat Fac Damage Taken 4008 | . 236 179 1260 2333 Core 1120 | . 80 66 248 726 Absorbed by Shields . | . . . . . Redirected to Shielding 18 | . 18 . . . Core Remaining (%) 76 | 100 68 83 54 . Volleys Fired 118 | 3 22 18 72 3 Largest 2 | 2 2 2 2 1 Hottest 122 | 90 100 100 122 61 Shots Fired 195 | 6 44 31 111 3 Gun 169 | 6 44 13 103 3 Cannon 26 | . . 18 8 . Launcher . | . . . . . Special . | . . . . . Kinetic . | . . . . . Thermal 182 | 6 44 18 111 3 Explosive . | . . . . . Electromagnetic 13 | . . 13 . . Robot Hit Streak 15 | 1 5 4 15 2 Robot Miss Streak 8 | 2 8 4 4 1 Penetration Max . | . . . . . Secondary Targets 1 | . 1 . . . Max Gunslinging Chain 1 | . 1 . . . Shots Hit Robots 173 | 1 26 16 69 61 Core Hits 67 | 1 11 8 32 15 Critical Kills 2 | . . . . 2 Critical Parts Destroyed 10 | . . . . 10 Critical Strikes 27 | . 3 . 10 14 Burn 14 | . 3 . 10 1 Smash 12 | . . . . 12 Sever 1 | . . . . 1 Melee Attacks 127 | . . . . 127 Impact 59 | . . . . 59 Slashing 68 | . . . . 68 Piercing . | . . . . . Sneak Attacks 19 | . . . . 19 Combat Hostiles . | . . . . . Follow-up Attacks 8 | . . . . 8 Damage Inflicted 6077 | 12 349 286 1392 4038 Guns 1815 | 12 349 74 1340 40 Cannons 264 | . . 212 52 . Explosions . | . . . . . Melee 3990 | . . . . 3990 Ramming 8 | . . . . 8 Kinetic . | . . . . . Thermal 2005 | 12 349 212 1392 40 Explosive . | . . . . . Electromagnetic 74 | . . 74 . . Impact 1984 | . . . . 1984 Slashing 2006 | . . . . 2006 Piercing . | . . . . . Highest Corruption 4 | . 4 . . 4 Average Corruption 2 | . 3 . . 2 Corruption Purged 3 | . . . . 3 Corruption Blocked 8 | . . . . 8 Effects 23 | . . . . 23 Message Errors 5 | . . . . 5 Matter Fused 4 | . . . . 4 Energy Discharges 5 | . . . . 5 Parts Rejected 1 | . . . . 1 Parts Fused 1 | . . . . 1 Data Loss (minor) 5 | . . . . 5 Data Loss (major) 2 | . . . . 2 Overload Shots . | . . . . . Overflow Damage 1437 | . . . . 1437 Projectiles . | . . . . . Explosions . | . . . . . Melee 1437 | . . . . 1437 Knockbacks 9 | . . . . 9 Impact 9 | . . . . 9 Kinetic . | . . . . . Secondary . | . . . . . Self-Inflicted Damage 4 | . . . . 4 Shots . | . . . . . Rammed 2 | . . . . 2 Targets Rammed 2 | . . . . 2 Kicked . | . . . . . Crushed . | . . . . . Highest Temperature 456 | 30 279 160 456 12 Average Temperature 111 | 15 118 50 129 6 Received Heat Transfer 801 | . 132 63 369 237 Effects 7 | . . . 7 . Shutdowns 1 | . . . 1 . Energy Bleed 1 | . . . 1 . Interference 1 | . . . 1 . Matter Decay 1 | . . . 1 . Short Circuit 2 | . . . 2 . Damage (major) 1 | . . . 1 . Siege Activations . | . . . . . Robots Corrupted . | . . . . . Combat Hostiles . | . . . . . Parts Fried 21 | . . . . 21 Impact Corruptions 31 | . . . . 31 Robots Melted 1 | . . . 1 . Combat Hostiles 1 | . . . 1 . Parts Melted 20 | . 4 . 15 1 Heat Transferred 5217 | 37 1258 444 3330 148 Parts Sabotaged . | . . . . . Parts Stolen . | . . . . . Parts Stripped . | . . . . . Power Chain Reactions . | . . . . . Missiles Intercepted . | . . . . . Alert | -11 -10 -9 -8 -7 ------- Run | Jun Mat Mat Mat Fac Peak Influence 355 | 5 88 179 179 355 Initial 75 | . 3 37 75 18 Average 88 | 3 35 112 73 111 Maximum Alert Level 1 | . . . . 1 Low Security (%) 93 | 100 100 100 100 86 Level 1 6 | . . . . 13 Level 2 . | . . . . . Level 3 . | . . . . . Level 4 . | . . . . . Level 5 . | . . . . . High Security . | . . . . . Max Security . | . . . . . Squads Dispatched 15 | . 1 1 2 11 Investigation 3 | . 1 . . 2 Extermination 4 | . . . . 4 Reinforcement 8 | . . 1 2 5 Assault . | . . . . . Garrison . | . . . . . Intercept . | . . . . . Searches Triggered . | . . . . . Construction Impeded 1 | . . . . 1 Haulers Reinforced 1 | . . . . 1 Active Scanning Responses . | . . . . . Cargo Convoy Interrupts 1 | . . . . 1 Stealth | -11 -10 -9 -8 -7 --------- Run | Jun Mat Mat Mat Fac Distress Signals 5 | . . . 1 4 Communications Jammed . | . . . . . Distress Signals . | . . . . . Times Spotted 76 | . 9 4 14 49 Peak Tracking Total 8 | . 4 1 5 8 Tactical Retreats 15 | . 1 . 3 11 Traps | -11 -10 -9 -8 -7 ------- Run | Jun Mat Mat Mat Fac Traps Triggered 9 | . 3 1 . 5 Indirectly . | . . . . . Trap Hack Attempts . | . . . . . Triggered . | . . . . . Disarmed . | . . . . . Reprogrammed . | . . . . . Reused . | . . . . . Traps Extracted . | . . . . . Installed . | . . . . . Triggered 1 | . . . . 1 Machines | -11 -10 -9 -8 -7 ---------- Run | Jun Mat Mat Mat Fac Machines Disabled 1 | . . 1 . . Max in Single Turn 1 | . . 1 . . Machines Repaired . | . . . . . Machines Sabotaged . | . . . . . Overloaded Fab Kills . | . . . . . Hacking | -11 -10 -9 -8 -7 --------- Run | Jun Mat Mat Mat Fac Machines Accessed 19 | . 1 2 6 10 Terminals 13 | . . 2 4 7 Fabricators . | . . . . . Repair Stations . | . . . . . Recycling Units 4 | . 1 . 1 2 Scanalyzers 2 | . . . 1 1 Garrison Access . | . . . . . Total Hacks 62 | . 1 5 27 29 Successful 27 | . 1 1 15 10 Failed 35 | . . 4 12 19 Catastrophic 11 | . . . 4 7 Database Lockouts . | . . . . . Manual 21 | . . . 9 12 Terminals 50 | . . 5 21 24 Fabricators . | . . . . . Repair Stations . | . . . . . Recycling Units 8 | . 1 . 4 3 Scanalyzers 4 | . . . 2 2 Garrison Access . | . . . . . Terminal Hacks 21 | . . 1 12 8 Record 5 | . . . 5 . Open DSF 2 | . . . . 2 Terminal Index 1 | . . . 1 . Alert Level 2 | . . 1 . 1 Unreport Threat 2 | . . . 2 . Locate Traps 2 | . . . 1 1 Security Status 2 | . . . 2 . Patrol Status 1 | . . . 1 . Investigation Status 1 | . . . . 1 Recall Investigation 1 | . . . . 1 Hauler Manifests 1 | . . . . 1 Zone Layout 1 | . . . . 1 Fabricator Hacks . | . . . . . Repair Station Hacks . | . . . . . Recycling Unit Hacks 4 | . 1 . 2 1 Report Inventory 2 | . 1 . 1 . Retrieve Components 2 | . . . 1 1 Scanalyzer 1 | . . . . 1 Insert Component 1 | . . . . 1 Garrison Access Hacks . | . . . . . Unauthorized Hacks 1 | . . . 1 . Terminals . | . . . . . Fabricators . | . . . . . Repair Stations . | . . . . . Recycling Units 1 | . . . 1 . Monitor 1 | . . . 1 . Scanalyzers . | . . . . . Garrison Access . | . . . . . Data Cores Recovered . | . . . . . Used . | . . . . . Hacking Detections 16 | . . 2 5 9 Full Trace Events 2 | . . . 1 1 Feedback Events . | . . . . . Feedback Blocked . | . . . . . Robot Schematics Acquired . | . . . . . Robots Built . | . . . . . Authchips . | . . . . . Time . | . . . . . Total Robot Build Rating . | . . . . . Part Schematics Acquired . | . . . . . Parts Built . | . . . . . Authchips . | . . . . . Time . | . . . . . Total Part Build Rating . | . . . . . Parts Repaired . | . . . . . Time . | . . . . . Parts Recycled . | . . . . . Recycled Matter . | . . . . . Retrieved Matter . | . . . . . Retrieved Components 10 | . . . 9 1 Parts Scanalyzed 1 | . . . . 1 Part Schematics Acquired . | . . . . . Parts Damaged . | . . . . . Bothacking | -11 -10 -9 -8 -7 ------------ Run | Jun Mat Mat Mat Fac Used RIF Installer . | . . . . . Robots Hacked . | . . . . . Non-combat . | . . . . . Combat . | . . . . . Robot Hacks Applied . | . . . . . Relay Couplers Released . | . . . . . Fabnet Peak Effective % . | . . . . . Robots Rewired . | . . . . . Allies Hacked . | . . . . . Hacks Repelled . | . . . . . Allies | -11 -10 -9 -8 -7 -------- Run | Jun Mat Mat Mat Fac Total Allies . | . . . . . Largest Group . | . . . . . Highest-Rated Group . | . . . . . Highest-Rated Ally . | . . . . . Total Orders . | . . . . . Ally Attacks . | . . . . . Total Damage . | . . . . . Kills . | . . . . . Allies Corrupted . | . . . . . Allies Melted . | . . . . . Intel | -11 -10 -9 -8 -7 ------- Run | Jun Mat Mat Mat Fac Robot Analysis Total . | . . . . . Derelict Logs Recovered . | . . . . . Drone Launches . | . . . . . Drone Recoveries . | . . . . . Exploration | -11 -10 -9 -8 -7 ------------- Run | Jun Mat Mat Mat Fac Turns Passed 5171 | 138 675 350 1305 2703 Spaces Moved 3709 | 87 468 200 805 2149 Core 71 | 5 . . . 66 Treads . | . . . . . Legs 2041 | 82 468 200 805 486 Wheels 1279 | . . . . 1279 Hover 318 | . . . . 318 Flight . | . . . . . Fastest Speed 48 | 50 120 120 110 48 Average Speed 104 | 115 120 120 118 94 Slowest Speed 400 | 120 120 120 190 400 Overloaded Moves . | . . . . . Propulsion Burnouts . | . . . . . Robots Hopped . | . . . . . Cave-ins Triggered . | . . . . . Exploration Rate (%) 34 | 4 53 20 38 56 Regions Visited 4 Branch Regions . Pre-discovered Areas . | . . . . . Known Exits Taken 2 | . . 1 1 . Unknown Exits Taken 2 | 1 1 . . . Scrap Searched . | . . . . . Spaces Dug 42 | . . . . 42 Terrain Destroyed 42 | . . . . 42 Melee 42 | . . . . 42 Projectile . | . . . . . AOE . | . . . . . Terrain Rammed . | . . . . . Walls Destroyed . | . . . . . Machines Disabled . | . . . . . Actions | -11 -10 -9 -8 -7 --------- Run | Jun Mat Mat Mat Fac Total 4581 | 118 538 278 1050 2597 Wait 357 | 16 30 32 85 194 Move 3705 | 86 467 199 804 2149 Hop . | . . . . . Pick Up 83 | 7 10 9 31 26 Fast Attach 24 | . . . 1 23 Attach 39 | 6 3 2 14 14 Detach 4 | . 2 . 1 1 Swap 43 | . 2 10 19 12 Drop 67 | . 2 8 23 34 Fire 118 | 3 22 18 72 3 Melee 119 | . . . . 119 Ram 1 | . . . . 1 Kick . | . . . . . Crush . | . . . . . Escape Stasis 21 | . . . . 21 Rewire . | . . . . . Trap . | . . . . . Miscellaneous . | . . . . . Route ------- -11/Junkyard -10/Materials (discovered 2 exits: *Mat / [*Min]) -9/Materials -8/Materials -7/Factory (discovered 2 exits: *Fac / *Low) History --------- Turn | Location | Event 10 | -11/Junkyard | Discovered new exit (range 15) 139 | -11/Junkyard | Entered Materials 311 | -10/Materials | Build established: Mutant 564 | -10/Materials | Discovered new exit (range 7) 803 | -10/Materials | Discovered new exit (range 9) 814 | -10/Materials | Entered another Materials area 814 | -9/Materials | Evolved 2 slots: Propulsion x1, Utility x1 1098 | -9/Materials | Discovered new exit (range 15) 1128 | -9/Materials | Identified exit to Materials 1164 | -9/Materials | Entered another Materials area 1164 | -8/Materials | Evolved 2 slots: Propulsion x1, Utility x1 1709 | -8/Materials | Lost 4 parts (1p2n1w) 2179 | -8/Materials | Build established: Scavenger-Mutant 2278 | -8/Materials | Discovered new exit (range 16) 2347 | -8/Materials | Identified exit to Factory 2469 | -8/Materials | Entered Factory 2469 | -7/Factory | Evolved 2 slots: Propulsion x2 2544 | -7/Factory | Discovered new exit (range 8) 2558 | -7/Factory | Identified exit to Factory 2630 | -7/Factory | Identified exit to DSF 2672 | -7/Factory | Build established: Mutant 2890 | -7/Factory | Discovered new exit (range 10) 3209 | -7/Factory | Lost 6 parts (1p5n) 3217 | -7/Factory | Identified exit to Lower Caves 3362 | -7/Factory | Cargo convoy interrupted 3527 | -7/Factory | Found Prototype Slashing Weapon 3528 | -7/Factory | Identified Centrium Greatsword 3836 | -7/Factory | Build established: Scavenger-Mutant 5133 | -7/Factory | Core integrity fell below 50% 5142 | -7/Factory | Core integrity fell below 20% 5171 | -7/Factory | Lost 10 parts (1p6n2u1w) 5172 | -7/Factory | Core destroyed Last Messages --------------- 05076_ K-01 Serf cleans the Assembly Bed. 05079_ System corrupted: Energy discharge (-36). 05080_ K-01 Serf cleans the Assembly Bed. 05102_ Gravmag System destroyed. 05112_ Destroyed Lgt. Nuclear Core. 05120_ Centrium Greatsword destroyed. 05121_ Slammed into S-27 Virus. 05123_ Gravmag System destroyed. 05128_ Acquired Gravmag System. 05129_ Mic. Nuclear Core destroyed. 05129_ Gravmag System destroyed. 05130_ System corrupted: Energy discharge (-21). 05131_ Acquired Gravmag System. 05133_ System Shield destroyed. 05133_ Gravmag System destroyed. 05135_ Critical hit (Destroy). 05135_ Gravmag System destroyed. 05140_ Med. Storage Unit destroyed. 05172_ Slammed into K-01 Serf. 05172_ Destabilizing: Core damaged (-28). Map ----- +----------------------------------------------------+ | ??????????????????????????#"""" + | | ??????????????????????????# # | | ??????????????????????????# # ###### | | ??????????????????????????# # #??###+ | | ??????????????????????????# ### ###??#[ | | ??????????????????????????############ ^#????# | | ????????????????????????????# *#^ #????# | | ????????????????????????????# # #????# | | ????????###########?????????# """" # #????# | | ????????# #?????????# """" # #????# | | ????????# #?????????# """" / ###??#### | | ????????# #?????????# """" # # | | ????????# #?????????# # # """"""" | | ????????# #?????????# """" # # | | ????????# [ #????????## %"""" # # """"""" | | ????????# #??######## %"""" # # | | ????????# #??# # """" + # """"""" | | ????????#####+#####??# # # # | | ????????????# #???# """ # # # """"""" | | ????????????#### #???# """ ########## # | | ??############## #???# """ + # """"""" | | ??# # #???# #### ##### + | | ??# # #???# """ #??# #???# # | | ??# """""" # ##### """ *####+##### ######### | | ???????""""" # # """kr# ^ ## | | ???????""""" # # @ k# """ ## | | ???????""""" + # !! # """ ## """"" """ | | ???????""""" # s ![ # """ ## "" F" """ | | ???????""""" # s# ! # ## "" "" """ | | ????????"""" # # # """ ## | | ??#?????"""" # ######## """ ## | | " ??????"""" # # """ ## | | " ?????? # [ # ## # | | ???????######## """ # """ ## # | | ??????????????# "T" """ # """ # # | | ???????????????# """ # """ #T # | | ???????????????# """ # ## # | | ################ ###/##### # | | % """ """ # | | % """ """ % # | | %%% / """ """ # | | * % # | | % % %[ % # | | %% ###########+############+############ # | | "" % / [#?# ## #????????# # | | """ %] #?# ] ## %!#????????# # | | """ "#?# ## """"" #????????# ^ / | | """ ####?# ## """"" #????????# ^# | | """ ###??# """ """ ## """ #######??# # | | """ """??# """ """ ## # ?# # | +----------------------------------------------------+ Best States ------------- Heat Dissipation 34 Energy Generation 17 Energy Capacity 300 Matter Stores 300 Matter Capacity 300 Sight Range 16 Robot Scan Range 15 Terrain Scan Density 10 Jamming Range 12 Base Temperature (-) 100 Armor Coverage 225 Power Shielding 33 Evasion (%) 55 Melee Accuracy 6 Defensive Hacking 10 Item Schematics ----------------- None Robot Schematics ------------------ None Fabricated ------------ Nothing Alien Tech Used ----------------- None Achievements -------------- None Challenges ------------ None Game ------ Seed ShockThermicMachine Manual? 0 Play Time 02:24:33 Cumulative 46.0 hours Start 2023.09.09 @ 14:35:31 End 2023.09.11 @ 16:28:32 Sessions 7 Manual Loads 0 Difficulty Rogue Special Mode None Game No. 18 Rogue 18 Adventurer 0 Explorer 0 Win Type - Total 1 Types 0/0/0/1/0/0/0/0/0 Lore% 31 Gallery% 32 Achievement% 37 Wizard Run 0 Options --------- ASCII 0 Keyboard 0 Movement Mouse Keybinds 0 Fullscreen 2 Font 18/X11Bold Map View 76x50 Tactical HUD 1 Map Filters NONE Filters NONE Steam 1 RUN: 743eae39-2ee0-435c-bbe2-787dd2adaa35